fUSD/lending_fUSD_20260520
["ID","MTS","AMOUNT","RATE_DAILY","PERIOD"]
[422684572,1779243041000,-500.0,0.00010198,2]
[422684574,1779243041000,-543.52319286,0.00010198,2]
[422684559,1779243041000,-500.0,0.00010198,2]
[422684565,1779243041000,-1484.0,0.00010198,2]
[422684576,1779243041000,-1484.0,0.00010198,2]
[422684578,1779243041000,-500.0,0.00010198,2]
[422684581,1779243041000,-1484.0,0.00010198,2]
[422684583,1779243041000,-500.0,0.00010198,2]
[422684587,1779243041000,-500.0,0.00010198,2]
[422684591,1779243041000,-500.0,0.00010198,2]
[422684589,1779243041000,-1484.0,0.00010198,2]
[422684594,1779243041000,-1484.0,0.00010198,2]
[422684593,1779243041000,-1484.0,0.00010198,2]
[422684596,1779243041000,-500.0,0.00010198,2]
[422684599,1779243041000,-1484.0,0.00010198,2]
[422684601,1779243041000,-352.67601278,0.00010198,2]
[422684603,1779243041000,-1484.0,0.00010198,2]
[422684622,1779243041000,-1484.0,0.00010198,2]
[422684613,1779243041000,-1484.0,0.00010198,2]
[422684615,1779243041000,-1484.0,0.00010198,2]
[422684620,1779243041000,-1484.0,0.00010198,2]
[422684618,1779243041000,-1484.0,0.00010198,2]
[422684624,1779243041000,-1484.0,0.00010198,2]
[422684506,1779243041000,-592.0,0.00010198,2]
[422684563,1779243041000,-500.0,0.00010198,2]
[422684561,1779243041000,-1484.0,0.00010198,2]
[422684585,1779243041000,-1484.0,0.00010198,2]
[422684566,1779243041000,-500.0,0.00010198,2]
[422684570,1779243041000,-1484.0,0.00010198,2]
[422684510,1779243041000,-592.0,0.00010198,2]
[422684524,1779243041000,-592.0,0.00010198,2]
[422684522,1779243041000,-592.0,0.00010198,2]
[422684508,1779243041000,-592.0,0.00010198,2]
[422684512,1779243041000,-592.0,0.00010198,2]
[422684519,1779243041000,-592.0,0.00010198,2]
[422684514,1779243041000,-592.0,0.00010198,2]
[422684526,1779243041000,-592.0,0.00010198,2]
[422684530,1779243041000,-150.0,0.00010198,2]
[422684532,1779243041000,-150.0,0.00010198,2]
[422684534,1779243041000,-150.0,0.00010198,2]
[422684538,1779243041000,-500.0,0.00010198,2]
[422684518,1779243041000,-592.0,0.00010198,2]
[422684553,1779243041000,-1484.0,0.00010198,2]
[422684541,1779243041000,-1484.0,0.00010198,2]
[422684543,1779243041000,-500.0,0.00010198,2]
[422684545,1779243041000,-1484.0,0.00010198,2]
[422684528,1779243041000,-614.28454808,0.00010198,2]
[422684540,1779243041000,-204.33805978,0.00010198,2]
[422684536,1779243041000,-150.0,0.00010198,2]
[422684549,1779243041000,-1484.0,0.00010198,2]
[422684547,1779243041000,-500.0,0.00010198,2]
[422684555,1779243041000,-500.0,0.00010198,2]
[422684557,1779243041000,-1484.0,0.00010198,2]
[422684568,1779243041000,-500.0,0.00010198,2]
[422684696,1779243042000,-989.127214,0.000102,2]
[422684688,1779243042000,-151.335487,0.000102,2]
[422684712,1779243042000,-1016.55766684,0.00010272,2]
[422684698,1779243042000,-567.089735,0.000102,2]
[422684709,1779243042000,-158.522473,0.000102,2]
[422684686,1779243042000,-500.0,0.00010198,2]
[422684703,1779243042000,-567.089735,0.000102,2]
[422684694,1779243042000,-989.127214,0.000102,2]
[422684692,1779243042000,-989.127214,0.000102,2]
[422684690,1779243042000,-989.127214,0.000102,2]
[422684705,1779243042000,-567.089735,0.000102,2]
[422684701,1779243042000,-567.089735,0.000102,2]
[422684707,1779243042000,-151.0,0.000102,2]
[422684720,1779243042000,-7361.055979,0.00010328,2]
[422684718,1779243042000,-208.58623393,0.00010319,2]
[422684730,1779243042000,-204.0,0.00010384,2]
[422684714,1779243042000,-1713.87,0.00010278,2]
[422684732,1779243042000,-204.0,0.00010384,2]
[422684724,1779243042000,-755.44,0.00010332,2]
[422684722,1779243042000,-160.76,0.00010332,2]
[422684728,1779243042000,-500.0,0.00010356,2]
[422684726,1779243042000,-96932.46,0.00010332,2]
[422684736,1779243042000,-204.0,0.00010384,2]
[422684734,1779243042000,-204.0,0.00010384,2]
[422684738,1779243042000,-204.0,0.00010384,2]
[422684716,1779243042000,-165.27,0.000103,2]
[422684682,1779243042000,-500.0,0.00010198,2]
[422684633,1779243042000,-500.0,0.00010198,2]
[422684684,1779243042000,-599.207073,0.00010198,2]
[422684745,1779243042000,-204.0,0.00010384,2]
[422684635,1779243042000,-500.0,0.00010198,2]
[422684629,1779243042000,-1497.1840712,0.00010198,2]
[422684631,1779243042000,-500.0,0.00010198,2]
[422684626,1779243042000,-1484.0,0.00010198,2]
[422684637,1779243042000,-500.0,0.00010198,2]
[422684639,1779243042000,-500.0,0.00010198,2]
[422684641,1779243042000,-500.0,0.00010198,2]
[422684643,1779243042000,-500.0,0.00010198,2]
[422684645,1779243042000,-500.0,0.00010198,2]
[422684647,1779243042000,-500.0,0.00010198,2]
[422684649,1779243042000,-500.0,0.00010198,2]
[422684680,1779243042000,-500.0,0.00010198,2]
[422684651,1779243042000,-500.0,0.00010198,2]
[422684659,1779243042000,-500.0,0.00010198,2]
[422684662,1779243042000,-500.0,0.00010198,2]
[422684655,1779243042000,-500.0,0.00010198,2]
[422684653,1779243042000,-500.0,0.00010198,2]
[422684663,1779243042000,-507.02255442,0.00010198,2]
[422684668,1779243042000,-500.0,0.00010198,2]
[422684669,1779243042000,-499.07186147,0.00010198,2]
[422684671,1779243042000,-150.0,0.00010198,2]
[422684666,1779243042000,-500.0,0.00010198,2]
[422684674,1779243042000,-500.0,0.00010198,2]
[422684678,1779243042000,-500.0,0.00010198,2]
[422684676,1779243042000,-500.0,0.00010198,2]
[422684657,1779243042000,-500.0,0.00010198,2]
[422684740,1779243042000,-204.0,0.00010384,2]
[422684743,1779243042000,-204.0,0.00010384,2]
[422684748,1779243042000,-500.0,0.00010384,2]
[422684815,1779243042000,-10405.15899615,0.000109,2]
[422684817,1779243042000,-10405.15899611,0.000109,2]
[422684820,1779243042000,-500.0,0.00010904,2]
[422684822,1779243042000,-500.0,0.00010932,2]
[422684828,1779243042000,-500.0,0.00010958,2]
[422684824,1779243042000,-500.0,0.00010958,2]
[422684830,1779243042000,-500.0,0.00010958,2]
[422684832,1779243042000,-500.0,0.00010958,2]
[422684826,1779243042000,-500.0,0.00010958,2]
[422684835,1779243042000,-500.0,0.00010958,2]
[422684849,1779243042000,-500.0,0.00010958,2]
[422684839,1779243042000,-500.0,0.00010958,2]
[422684813,1779243042000,-163.390817,0.00010897,2]
[422684851,1779243042000,-500.0,0.00010958,2]
[422684853,1779243042000,-500.0,0.00010958,2]
[422684855,1779243042000,-500.0,0.00010958,2]
[422684864,1779243042000,-500.0,0.00010958,2]
[422684860,1779243042000,-500.0,0.00010958,2]
[422684858,1779243042000,-500.0,0.00010958,2]
[422684843,1779243042000,-500.0,0.00010958,2]
[422684862,1779243042000,-500.0,0.00010958,2]
[422684845,1779243042000,-500.0,0.00010958,2]
[422684847,1779243042000,-500.0,0.00010958,2]
[422684866,1779243042000,-500.0,0.00010958,2]
[422684868,1779243042000,-500.0,0.00010958,2]
[422684751,1779243042000,-2000.0,0.00010423,2]
[422684841,1779243042000,-500.0,0.00010958,2]
[422684811,1779243042000,-350.0,0.00010844,2]
[422684837,1779243042000,-500.0,0.00010958,2]
[422684804,1779243042000,-166.66,0.00010788,2]
[422684809,1779243042000,-152.0,0.00010833,2]
[422684752,1779243042000,-500.0,0.00010466,2]
[422684759,1779243042000,-1000.0,0.000105,2]
[422684761,1779243042000,-163.390817,0.00010518,2]
[422684755,1779243042000,-500.0,0.00010472,2]
[422684757,1779243042000,-166.66,0.00010474,2]
[422684763,1779243042000,-152.0,0.00010522,2]
[422684768,1779243042000,-350.0,0.00010565,2]
[422684765,1779243042000,-1713.87,0.00010529,2]
[422684770,1779243042000,-350.0,0.00010583,2]
[422684776,1779243042000,-152.0,0.0001062,7]
[422684774,1779243042000,-152.0,0.00010617,7]
[422684772,1779243042000,-152.0,0.00010617,7]
[422684746,1779243042000,-204.0,0.00010384,2]
[422684784,1779243042000,-151.0,0.000107,2]
[422684778,1779243042000,-152.0,0.0001062,7]
[422684795,1779243042000,-151.0,0.000107,2]
[422684806,1779243042000,-208.69107998,0.00010829,2]
[422684800,1779243042000,-350.0,0.0001077,2]
[422684793,1779243042000,-151.0,0.000107,2]
[422684791,1779243042000,-151.0,0.000107,2]
[422684802,1779243042000,-1713.87,0.00010779,2]
[422684788,1779243042000,-151.0,0.000107,2]
[422684786,1779243042000,-151.0,0.000107,2]
[422684782,1779243042000,-151036.30795693,0.000107,2]
[422684780,1779243042000,-500.0,0.0001063,2]
[422684798,1779243042000,-500.0,0.00010746,2]
[422684966,1779243043000,-255.72716858,0.0001102,2]
[422684964,1779243043000,-641.00259702,0.0001102,2]
[422684949,1779243043000,-151.0,0.00010959,2]
[422684941,1779243043000,-150.0,0.00010959,2]
[422684968,1779243043000,-500.0,0.0001102,2]
[422684958,1779243043000,-1680.0,0.00010996,2]
[422684960,1779243043000,-242.81,0.00011002,2]
[422684956,1779243043000,-420.0,0.00010996,2]
[422684945,1779243043000,-151.0,0.00010959,2]
[422684943,1779243043000,-150.0,0.00010959,2]
[422684947,1779243043000,-151.0,0.00010959,2]
[422684962,1779243043000,-250.0,0.0001102,2]
[422684954,1779243043000,-169.0,0.00010986,2]
[422684977,1779243043000,-300.0,0.00011098,2]
[422684970,1779243043000,-1713.87,0.0001103,2]
[422684972,1779243043000,-300.0,0.00011098,2]
[422684975,1779243043000,-666.0,0.00011098,2]
[422684979,1779243043000,-300.0,0.00011098,2]
[422684981,1779243043000,-300.0,0.00011098,2]
[422684987,1779243043000,-711.17532279,0.00011098,2]
[422684983,1779243043000,-666.0,0.00011098,2]
[422684989,1779243043000,-22389.30278278,0.00011099,2]
[422684985,1779243043000,-306.09594461,0.00011098,2]
[422684993,1779243043000,-22389.30278274,0.00011099,2]
[422684991,1779243043000,-22389.30278274,0.00011099,2]
[422684938,1779243043000,-164.772247,0.00010959,2]
[422684952,1779243043000,-151.0,0.00010959,2]
[422684934,1779243043000,-151.0,0.00010959,2]
[422684876,1779243043000,-500.0,0.00010958,2]
[422684936,1779243043000,-151.0,0.00010959,2]
[422684995,1779243043000,-22389.30278274,0.00011099,2]
[422684878,1779243043000,-500.0,0.00010958,2]
[422684882,1779243043000,-500.0,0.00010958,2]
[422684884,1779243043000,-500.0,0.00010958,2]
[422684870,1779243043000,-500.0,0.00010958,2]
[422684886,1779243043000,-500.0,0.00010958,2]
[422684872,1779243043000,-500.0,0.00010958,2]
[422684874,1779243043000,-500.0,0.00010958,2]
[422684887,1779243043000,-500.0,0.00010958,2]
[422684895,1779243043000,-500.0,0.00010958,2]
[422684898,1779243043000,-500.0,0.00010958,2]
[422684893,1779243043000,-500.0,0.00010958,2]
[422684890,1779243043000,-500.0,0.00010958,2]
[422684901,1779243043000,-500.0,0.00010958,2]
[422684904,1779243043000,-500.0,0.00010958,2]
[422684907,1779243043000,-500.0,0.00010958,2]
[422684909,1779243043000,-500.0,0.00010958,2]
[422684911,1779243043000,-500.0,0.00010958,2]
[422684913,1779243043000,-500.0,0.00010958,2]
[422684917,1779243043000,-500.0,0.00010958,2]
[422684915,1779243043000,-500.0,0.00010958,2]
[422684922,1779243043000,-500.0,0.00010958,2]
[422684924,1779243043000,-500.0,0.00010958,2]
[422684926,1779243043000,-500.0,0.00010958,2]
[422684928,1779243043000,-500.0,0.00010958,2]
[422684932,1779243043000,-151.0,0.00010959,2]
[422684919,1779243043000,-500.0,0.00010958,2]
[422684930,1779243043000,-378.85877945,0.00010958,2]
[422684998,1779243043000,-22389.30278274,0.00011099,2]
[422684879,1779243043000,-500.0,0.00010958,2]
[422685006,1779243043000,-22389.30278274,0.00011099,2]
[422685071,1779243043000,-1000.0,0.000111,2]
[422685069,1779243043000,-1000.0,0.000111,2]
[422685076,1779243043000,-1000.0,0.000111,2]
[422685078,1779243043000,-1000.0,0.000111,2]
[422685082,1779243043000,-1000.0,0.000111,2]
[422685088,1779243043000,-151.0,0.000111,2]
[422685074,1779243043000,-1000.0,0.000111,2]
[422685084,1779243043000,-1000.0,0.000111,2]
[422685086,1779243043000,-1015.81123854,0.000111,2]
[422685080,1779243043000,-1000.0,0.000111,2]
[422685090,1779243043000,-151.0,0.000111,2]
[422685094,1779243043000,-166.66,0.00011103,2]
[422685098,1779243043000,-427.5962,0.0001112,2]
[422685096,1779243043000,-255.0,0.00011105,2]
[422685092,1779243043000,-151.0,0.000111,2]
[422685102,1779243043000,-617.14328,0.0001113,2]
[422685104,1779243043000,-617.14328,0.0001113,2]
[422685100,1779243043000,-427.59621,0.0001112,2]
[422685110,1779243043000,-927.29641,0.0001113,2]
[422685106,1779243043000,-617.14329,0.0001113,2]
[422685108,1779243043000,-927.29641,0.0001113,2]
[422685115,1779243043000,-427.59621,0.0001113,2]
[422685119,1779243043000,-4999.99,0.00011281,2]
[422685121,1779243043000,-999.99,0.00011281,2]
[422685112,1779243043000,-927.29641,0.0001113,2]
[422685123,1779243043000,-9999.99,0.00011281,2]
[422685009,1779243043000,-22389.30278274,0.00011099,2]
[422685067,1779243043000,-1000.0,0.000111,2]
[422685065,1779243043000,-151.0,0.00011099,2]
[422685116,1779243043000,-179.12,0.00011233,2]
[422685060,1779243043000,-151.0,0.00011099,2]
[422685011,1779243043000,-13574.88736357,0.00011099,2]
[422685000,1779243043000,-22389.30278274,0.00011099,2]
[422685002,1779243043000,-22389.30278274,0.00011099,2]
[422685004,1779243043000,-22389.30278274,0.00011099,2]
[422685013,1779243043000,-13574.88736356,0.00011099,2]
[422685015,1779243043000,-13574.88736356,0.00011099,2]
[422685019,1779243043000,-989.127214,0.00011099,2]
[422685062,1779243043000,-151.0,0.00011099,2]
[422685021,1779243043000,-989.127214,0.00011099,2]
[422685023,1779243043000,-989.127214,0.00011099,2]
[422685026,1779243043000,-989.127214,0.00011099,2]
[422685028,1779243043000,-989.127214,0.00011099,2]
[422685029,1779243043000,-989.127214,0.00011099,2]
[422685017,1779243043000,-989.127214,0.00011099,2]
[422685036,1779243043000,-567.089735,0.00011099,2]
[422685034,1779243043000,-567.089735,0.00011099,2]
[422685050,1779243043000,-151.0,0.00011099,2]
[422685056,1779243043000,-151.0,0.00011099,2]
[422685058,1779243043000,-151.0,0.00011099,2]
[422685052,1779243043000,-151.0,0.00011099,2]
[422685048,1779243043000,-567.089735,0.00011099,2]
[422685054,1779243043000,-151.0,0.00011099,2]
[422685043,1779243043000,-567.089735,0.00011099,2]
[422685041,1779243043000,-567.089735,0.00011099,2]
[422685039,1779243043000,-567.089735,0.00011099,2]
[422685037,1779243043000,-567.089735,0.00011099,2]
[422685032,1779243043000,-989.127214,0.00011099,2]
[422685045,1779243043000,-567.089735,0.00011099,2]
[422685215,1779243044000,-587.0,0.00012095,2]
[422685218,1779243044000,-2351.0,0.00012095,2]
[422685211,1779243044000,-160.76,0.00012054,2]
[422685205,1779243044000,-491.22,0.00011863,2]
[422685188,1779243044000,-350.0,0.00011713,2]
[422685197,1779243044000,-13574.88736356,0.00011843,2]
[422685182,1779243044000,-500.0,0.00011644,2]
[422685203,1779243044000,-468.33,0.00011862,2]
[422685201,1779243044000,-2759.111748,0.00011845,2]
[422685184,1779243044000,-350.0,0.00011671,2]
[422685186,1779243044000,-163.390817,0.00011707,2]
[422685207,1779243044000,-350.0,0.00011945,2]
[422685241,1779243044000,-163.33155694,0.00012499,2]
[422685213,1779243044000,-350.0,0.00012054,2]
[422685222,1779243044000,-500.0,0.00012116,2]
[422685220,1779243044000,-10405.15899611,0.00012098,2]
[422685224,1779243044000,-3123.0,0.00012133,5]
[422685226,1779243044000,-2887.0,0.00012133,5]
[422685228,1779243044000,-3009.14,0.000122,2]
[422685233,1779243044000,-433.0,0.00012215,2]
[422685235,1779243044000,-13574.88736356,0.00012304,2]
[422685237,1779243044000,-221.12,0.00012329,2]
[422685231,1779243044000,-989.6,0.000122,2]
[422685239,1779243044000,-500.0,0.0001239,2]
[422685199,1779243044000,-3197.809816,0.00011845,2]
[422685243,1779243044000,-311.25395664,0.000125,2]
[422685209,1779243044000,-441.0,0.00012,2]
[422685180,1779243044000,-755.44,0.00011623,2]
[422685156,1779243044000,-500.0,0.00011398,3]
[422685193,1779243044000,-170.0,0.00011833,2]
[422685251,1779243044000,-500.0,0.00012664,2]
[422685127,1779243044000,-150.99,0.00011281,2]
[422685125,1779243044000,-9999.99,0.00011281,2]
[422685133,1779243044000,-1734.11,0.00011281,2]
[422685144,1779243044000,-500.0,0.00011294,2]
[422685135,1779243044000,-299.99,0.00011281,2]
[422685131,1779243044000,-9999.99,0.00011281,2]
[422685137,1779243044000,-650.01,0.00011281,2]
[422685141,1779243044000,-500.0,0.00011288,2]
[422685146,1779243044000,-350.0,0.0001136,2]
[422685139,1779243044000,-24999.99,0.00011281,2]
[422685148,1779243044000,-500.0,0.0001137,2]
[422685195,1779243044000,-500.0,0.00011842,2]
[422685150,1779243044000,-13574.88736356,0.00011381,2]
[422685154,1779243044000,-500.0,0.00011398,2]
[422685158,1779243044000,-500.0,0.00011398,4]
[422685160,1779243044000,-500.0,0.00011398,5]
[422685164,1779243044000,-500.0,0.00011398,7]
[422685162,1779243044000,-500.0,0.00011398,6]
[422685166,1779243044000,-350.0,0.00011429,2]
[422685169,1779243044000,-555.44,0.00011499,8]
[422685171,1779243044000,-500.0,0.00011568,2]
[422685173,1779243044000,-2000.0,0.00011581,2]
[422685176,1779243044000,-150.0,0.00011601,2]
[422685178,1779243044000,-350.0,0.00011615,2]
[422685191,1779243044000,-159.16,0.00011715,2]
[422685152,1779243044000,-10405.15899611,0.00011398,2]
[422685248,1779243044000,-468.33784303,0.00012515,2]
[422685129,1779243044000,-9999.99,0.00011281,2]
[422685245,1779243044000,-491.22905312,0.00012514,2]
[422685309,1779243044000,-193.07224655,0.00013107,2]
[422685315,1779243044000,-150.0,0.00013135,2]
[422685313,1779243044000,-193.07224655,0.00013121,2]
[422685307,1779243044000,-150.0,0.00013095,2]
[422685311,1779243044000,-150.0,0.00013116,2]
[422685322,1779243044000,-151.0,0.00013151,2]
[422685324,1779243044000,-151.0,0.00013151,2]
[422685331,1779243044000,-151.0,0.00013151,2]
[422685333,1779243044000,-151.000006,0.00013151,2]
[422685335,1779243044000,-193.07224655,0.00013151,2]
[422685326,1779243044000,-151.0,0.00013151,2]
[422685337,1779243044000,-150.0,0.00013164,2]
[422685319,1779243044000,-151.0,0.00013151,2]
[422685341,1779243044000,-193.07224655,0.00013165,2]
[422685339,1779243044000,-150.0,0.00013164,2]
[422685343,1779243044000,-150.0,0.00013171,2]
[422685345,1779243044000,-193.07224655,0.0001318,2]
[422685351,1779243044000,-150.0,0.000132,2]
[422685350,1779243044000,-193.07224655,0.00013195,2]
[422685354,1779243044000,-193.07224655,0.00013209,2]
[422685356,1779243044000,-500.0,0.00013212,2]
[422685360,1779243044000,-193.07224655,0.00013224,2]
[422685348,1779243044000,-150.0,0.00013193,2]
[422685358,1779243044000,-150.0,0.00013212,2]
[422685362,1779243044000,-13574.88736356,0.00013227,2]
[422685364,1779243044000,-193.07224655,0.00013238,2]
[422685328,1779243044000,-151.0,0.00013151,2]
[422685317,1779243044000,-193.07224655,0.00013136,2]
[422685366,1779243044000,-150.0,0.00013248,2]
[422685301,1779243044000,-150.0,0.00013077,2]
[422685305,1779243044000,-193.07224655,0.00013092,2]
[422685253,1779243044000,-150.19796051,0.00012706,2]
[422685255,1779243044000,-500.0,0.00012712,2]
[422685259,1779243044000,-13574.88736356,0.00012766,2]
[422685257,1779243044000,-2000.0,0.00012739,2]
[422685260,1779243044000,-10405.15899611,0.00012799,2]
[422685262,1779243044000,-755.44,0.00012915,2]
[422685264,1779243044000,-3619.47379772,0.00013,2]
[422685258,1779243044000,-500.0,0.00012744,2]
[422685263,1779243044000,-500.0,0.00012938,2]
[422685261,1779243044000,-275.27,0.00012877,2]
[422685266,1779243044000,-500.0,0.00013018,2]
[422685270,1779243044000,-150.0,0.00013019,2]
[422685268,1779243044000,-150.0,0.00013019,2]
[422685249,1779243044000,-500.0,0.00012521,2]
[422685282,1779243044000,-150.0,0.00013019,2]
[422685272,1779243044000,-150.17791431,0.00013019,2]
[422685303,1779243044000,-193.07224655,0.00013078,2]
[422685296,1779243044000,-193.07224655,0.00013063,2]
[422685294,1779243044000,-5397.96052804,0.0001305,2]
[422685292,1779243044000,-193.07224655,0.00013048,2]
[422685289,1779243044000,-193.07224655,0.00013034,2]
[422685299,1779243044000,-150.0,0.00013067,2]
[422685274,1779243044000,-150.0,0.00013019,2]
[422685287,1779243044000,-193.07224655,0.00013019,2]
[422685285,1779243044000,-150.0,0.00013019,2]
[422685278,1779243044000,-150.0,0.00013019,2]
[422685280,1779243044000,-150.0,0.00013019,2]
[422685276,1779243044000,-150.0,0.00013019,2]
[422685453,1779243045000,-193.07224655,0.00013487,2]
[422685449,1779243045000,-150.0,0.00013482,2]
[422685447,1779243045000,-150.0,0.00013476,2]
[422685432,1779243045000,-193.07224655,0.00013428,2]
[422685444,1779243045000,-193.07224655,0.00013472,2]
[422685434,1779243045000,-736.0,0.00013436,2]
[422685427,1779243045000,-193.07224655,0.00013414,2]
[422685442,1779243045000,-193.07224655,0.00013458,2]
[422685440,1779243045000,-150.0,0.00013453,2]
[422685429,1779243045000,-150.0,0.00013424,2]
[422685455,1779243045000,-10405.15899611,0.00013499,2]
[422685464,1779243045000,-193.07224655,0.00013516,2]
[422685462,1779243045000,-193.07224655,0.00013501,2]
[422685466,1779243045000,-193.07224655,0.00013531,2]
[422685469,1779243045000,-150.0,0.0001354,2]
[422685458,1779243045000,-150.0,0.00013501,2]
[422685438,1779243045000,-150.0,0.00013453,2]
[422685471,1779243045000,-193.07224655,0.00013545,2]
[422685460,1779243045000,-150.0,0.00013501,2]
[422685473,1779243045000,-150.0,0.0001355,2]
[422685475,1779243045000,-150.0,0.00013552,2]
[422685477,1779243045000,-193.07224655,0.0001356,2]
[422685489,1779243045000,-150.0,0.00013598,2]
[422685482,1779243045000,-193.07224655,0.00013574,2]
[422685451,1779243045000,-500.0,0.00013486,2]
[422685436,1779243045000,-193.07224655,0.00013443,2]
[422685401,1779243045000,-193.07224655,0.00013355,2]
[422685418,1779243045000,-193.07224655,0.00013384,2]
[422685491,1779243045000,-150.0,0.00013598,2]
[422685368,1779243045000,-150.0,0.00013251,2]
[422685370,1779243045000,-193.07224655,0.00013253,2]
[422685372,1779243045000,-150.0,0.0001326,2]
[422685376,1779243045000,-193.07224655,0.00013282,2]
[422685387,1779243045000,-150.0,0.00013308,2]
[422685383,1779243045000,-823.0,0.00013305,2]
[422685381,1779243045000,-193.07224655,0.00013297,2]
[422685374,1779243045000,-193.07224655,0.00013268,2]
[422685378,1779243045000,-168.67883505,0.00013292,2]
[422685385,1779243045000,-3292.0,0.00013305,2]
[422685389,1779243045000,-150.0,0.00013308,2]
[422685393,1779243045000,-193.07224655,0.00013311,2]
[422685395,1779243045000,-150.0,0.00013324,2]
[422685391,1779243045000,-150.0,0.00013308,2]
[422685408,1779243045000,-500.0,0.00013356,2]
[422685410,1779243045000,-150.0,0.00013357,2]
[422685412,1779243045000,-150.0,0.00013366,2]
[422685399,1779243045000,-193.07224655,0.00013341,2]
[422685414,1779243045000,-193.07224655,0.0001337,2]
[422685405,1779243045000,-1200.0,0.00013356,2]
[422685403,1779243045000,-500.0,0.00013356,2]
[422685421,1779243045000,-193.07224655,0.00013399,2]
[422685423,1779243045000,-150.0,0.000134,2]
[422685416,1779243045000,-150.0,0.00013381,2]
[422685425,1779243045000,-150.0,0.00013405,2]
[422685397,1779243045000,-193.07224655,0.00013326,2]
[422685494,1779243045000,-193.07224655,0.00013604,2]
[422685487,1779243045000,-150.0,0.00013598,2]
[422685553,1779243045000,-500.0,0.00013698,2]
[422685554,1779243045000,-500.0,0.00013698,2]
[422685555,1779243045000,-500.0,0.00013698,2]
[422685557,1779243045000,-625.7470238,0.00013698,2]
[422685558,1779243045000,-500.0,0.00013698,2]
[422685556,1779243045000,-500.0,0.00013698,2]
[422685559,1779243045000,-500.0,0.00013698,2]
[422685561,1779243045000,-500.0,0.00013698,2]
[422685562,1779243045000,-500.0,0.00013698,2]
[422685560,1779243045000,-500.0,0.00013698,2]
[422685564,1779243045000,-500.0,0.00013698,2]
[422685551,1779243045000,-666.0,0.00013698,2]
[422685565,1779243045000,-500.0,0.00013698,2]
[422685566,1779243045000,-500.0,0.00013698,2]
[422685569,1779243045000,-500.0,0.00013698,2]
[422685572,1779243045000,-500.0,0.00013698,2]
[422685570,1779243045000,-500.0,0.00013698,2]
[422685571,1779243045000,-517.76721764,0.00013698,2]
[422685575,1779243045000,-500.0,0.00013698,2]
[422685577,1779243045000,-500.0,0.00013698,2]
[422685573,1779243045000,-500.0,0.00013698,2]
[422685576,1779243045000,-500.0,0.00013698,2]
[422685574,1779243045000,-500.0,0.00013698,2]
[422685480,1779243045000,-150.0,0.00013562,2]
[422685568,1779243045000,-500.0,0.00013698,2]
[422685552,1779243045000,-500.0,0.00013698,2]
[422685563,1779243045000,-500.0,0.00013698,2]
[422685550,1779243045000,-300.0,0.00013698,2]
[422685484,1779243045000,-193.07224655,0.00013589,2]
[422685546,1779243045000,-300.0,0.00013697,2]
[422685496,1779243045000,-2650.12,0.00013608,2]
[422685498,1779243045000,-193.07224655,0.00013618,2]
[422685500,1779243045000,-150.0,0.00013628,2]
[422685504,1779243045000,-150.0,0.00013646,2]